Cogmind - Beta 17 @@@ ROGUE MODE // 2026.07.07 @ 17:40:54 Player: Scarlet Result: Destroyed by G-34 Mercenary with Small Laser Performance ------------- Evolutions (0) 0 Regions Visited (1) 200 Robots Destroyed (2) 10 Value Destroyed (81) 81 Prototype IDs (0) 0 Alien Tech Used (0) 0 Bonus (0) 0 TOTAL SCORE: 291 Bonus ------- None Cogmind --------- Core Integrity 0/250 Matter 212/300 Energy 100/100 System Corruption 0% Temperature Cool (52) Movement Core (150) Ox2 Location -10/Materials Parts ------- > --- POWER (1) -------- (None) > --- PROPULSION (2) --- (None) > --- UTILITY (2) ------ Small Storage Unit > --- WEAPON (2) ------- Particle Gun > --- INVENTORY (8) ---- (None) Peak State ------------ > --- POWER ------------ Light Ion Engine > --- PROPULSION ------- Aluminum Leg Aluminum Leg > --- UTILITY ---------- Small Storage Unit > --- WEAPON ----------- Light Assault Rifle Light Assault Rifle > --- INVENTORY -------- (None) [Rating: 6] Favorites ----------- Power Light Ion Engine Engine Light Ion Engine Power Core Light Nuclear Core Propulsion Aluminum Leg Leg Aluminum Leg Utility Small Storage Unit Storage Small Storage Unit Weapon Light Assault Rifle Energy Gun Particle Gun Ballistic Gun Light Assault Rifle Build | -11 -10 ------- Run | Yrd Mat Slots Evolved . | . . Power . | . . Propulsion . | . . Utility . | . . Weapon . | . . Parts Attached 8 | 6 2 Power 2 | 1 1 Engine 1 | 1 . Core 1 | . 1 Reactor . | . . Propulsion 2 | 2 . Treads . | . . Leg 2 | 2 . Wheel . | . . Hover . | . . Flight . | . . Utility 1 | 1 . Device . | . . Storage 1 | 1 . Processor . | . . Hackware . | . . Protection . | . . Artifact . | . . Weapon 3 | 2 1 Energy Gun 1 | . 1 Energy Cannon . | . . Ballistic Gun 2 | 2 . Ballistic Cannon . | . . Launcher . | . . Special Weapon . | . . Impact Weapon . | . . Slashing Weapon . | . . Piercing Weapon . | . . Special Melee Weapon . | . . Unidentified Prototypes . | . . Parts Lost 6 | . 6 Power 2 | . 2 Propulsion 2 | . 2 Utility . | . . Weapon 2 | . 2 Highest Loss Streak 6 | . 6 To Critical Strikes . | . . Average Backups . | . . Power . | . . Propulsion . | . . Utility . | . . Weapon . | . . Tool/Special . | . . Unused Backups . | . . Power . | . . Propulsion . | . . Utility . | . . Weapon . | . . Tool/Special . | . . Average Slot Usage (%) 69 | . 69 Engine 8 | . 8 Leg 22 | . 22 Storage 14 | . 14 Ballistic Gun 23 | . 23 Peak Build Rating 6 | 6 6 Average Rating 4 | 4 5 On Entrance 3 | . 6 Avg Prop Armor Cover (%) . | . . Naked Turns . | . . Heaviest Build 13 | 10 13 Greatest Support 20 | 20 20 Greatest Overweight (x) 4 | 3 4 Average Overweight (x) . | . . Largest Inventory Capacity 8 | 8 8 Average Capacity 7 | 7 8 Most Carried . | . . Average Carried . | . . Final Capacity 8 | 8 8 Final Carried . | . . Class Distribution -------------------- 100% | Mutant Dominant Class ---------------- Mutant | -10/Materials Resources | -11 -10 ----------- Run | Yrd Mat Matter Collected 192 | 192 . Remotely . | . . Salvage Created 82 | . 82 Parts 7 | . 7 Haulers Intercepted . | . . Recyclers Shooed . | . . Parts Field Recycled . | . . Retrieved Matter . | . . Parts Self-Destructed . | . . Prevented . | . . Parts Restored . | . . Kills | -11 -10 ------- Run | Yrd Mat Combat Hostiles Destroyed 2 | . 2 Guns 2 | . 2 Classes Destroyed 1 | . 1 Grunt 2 | . 2 Best Kill Streak 2 | . 2 Combat Bots Only 2 | . 2 Max Kills in Single Turn 1 | . 1 Gunslinging . | . . Exploded . | . . Melee . | . . Uniques/NPCs Destroyed . | . . Combat | -11 -10 -------- Run | Yrd Mat Hostile Shots Fired 76 | . 76 Missed 19 | . 19 Hits 57 | . 57 Projectile 57 | . 57 Critical Strikes 1 | . 1 Damage Taken 741 | . 741 Core 251 | . 251 Absorbed by Shields . | . . Core Remaining (%) 100 | 100 . Volleys Fired 28 | . 28 Largest 2 | . 2 Hottest 65 | . 65 Shots Fired 45 | . 45 Gun 45 | . 45 Cannon . | . . Launcher . | . . Special . | . . Kinetic 43 | . 43 Thermal 2 | . 2 Explosive . | . . Electromagnetic . | . . Robot Hit Streak 6 | . 6 Robot Miss Streak 3 | . 3 Penetration Max . | . . Secondary Targets 1 | . 1 Max Gunslinging Chain 1 | . 1 Shots Hit Robots 27 | . 27 Core Hits 6 | . 6 Critical Kills . | . . Critical Parts Destroyed . | . . Critical Strikes . | . . Melee Attacks . | . . Impact . | . . Slashing . | . . Piercing . | . . Sneak Attacks . | . . Combat Hostiles . | . . Follow-up Attacks . | . . Damage Inflicted 260 | . 260 Guns 253 | . 253 Cannons . | . . Explosions . | . . Melee . | . . Ramming 7 | . 7 Kinetic 238 | . 238 Thermal 15 | . 15 Explosive . | . . Electromagnetic . | . . Impact . | . . Slashing . | . . Piercing . | . . Highest Corruption . | . . Average Corruption . | . . Corruption Purged . | . . Corruption Blocked . | . . Overload Shots . | . . Overflow Damage . | . . Projectiles . | . . Explosions . | . . Melee . | . . Knockbacks . | . . Impact . | . . Kinetic . | . . Secondary . | . . Self-Inflicted Damage 2 | . 2 Shots . | . . Rammed 4 | . 4 Targets Rammed 4 | . 4 Kicked . | . . Crushed . | . . Highest Temperature 46 | . 46 Average Temperature 9 | . 9 Received Heat Transfer 417 | . 417 Siege Activations . | . . Martial Activations . | . . Shielding Activations . | . . Robots Disrupted . | . . Combat Hostiles . | . . Robots Corrupted . | . . Combat Hostiles . | . . Parts Fried . | . . Impact Corruptions . | . . Robots Melted . | . . Combat Hostiles . | . . Parts Melted . | . . Heat Transferred 37 | . 37 Parts Sabotaged . | . . Parts Stolen . | . . Parts Stripped . | . . Power Chain Reactions . | . . Alert | -11 -10 ------- Run | Yrd Mat Maximum Alert Level . | . . Low Security (%) 100 | 100 100 Level 1 . | . . Level 2 . | . . Level 3 . | . . Level 4 . | . . Level 5 . | . . High Security . | . . Max Security . | . . Peak Influence 30 | . 30 Initial . | . . Average 3 | . 4 Influence Increases 70 | . 70 Destroy 0b10 Robot/C 40 | . 40 Destroy Leader 10 | . 10 Successful Hack 5 | . 5 Lose Combat Pursuer 15 | . 15 Influence Decreases 60 | . 60 Time Decay 10 | . 10 Lost Part 50 | . 50 Squads Dispatched . | . . Investigation . | . . Extermination . | . . Reinforcement . | . . Assault . | . . Garrison . | . . Intercept . | . . Searches Triggered . | . . Construction Impeded . | . . Haulers Reinforced . | . . Active Scanning Responses . | . . Cargo Convoy Interrupts . | . . Stealth | -11 -10 --------- Run | Yrd Mat Distress Signals . | . . Communications Jammed . | . . Distress Signals . | . . Times Spotted 7 | . 7 Peak Tracking Total 5 | . 5 Tactical Retreats 1 | . 1 Traps | -11 -10 ------- Run | Yrd Mat Traps Triggered . | . . Indirectly . | . . Trap Hack Attempts . | . . Triggered . | . . Disarmed . | . . Reprogrammed . | . . Reused . | . . Traps Extracted . | . . Installed . | . . Triggered . | . . Machines | -11 -10 ---------- Run | Yrd Mat Machines Disabled . | . . Max in Single Turn . | . . Machines Repaired . | . . Machines Dismantled . | . . Machines Sabotaged . | . . Overloaded Fab Kills . | . . Hacking | -11 -10 --------- Run | Yrd Mat Machines Accessed 1 | . 1 Terminals 1 | . 1 Fabricators . | . . Repair Stations . | . . Recycling Units . | . . Scanalyzers . | . . Garrison Access . | . . Total Hacks 1 | . 1 Successful 1 | . 1 Failed . | . . Catastrophic . | . . Database Lockouts . | . . Manual . | . . Terminals 1 | . 1 Fabricators . | . . Repair Stations . | . . Recycling Units . | . . Scanalyzers . | . . Garrison Access . | . . Terminal Hacks 1 | . 1 Zone Layout 1 | . 1 Fabricator Hacks . | . . Repair Station Hacks . | . . Recycling Unit Hacks . | . . Scanalyzer . | . . Garrison Access Hacks . | . . Unauthorized Hacks . | . . Terminals . | . . Fabricators . | . . Repair Stations . | . . Recycling Units . | . . Scanalyzers . | . . Garrison Access . | . . Data Cores Recovered . | . . Used . | . . Hacking Detections 1 | . 1 Full Trace Events . | . . Feedback Events . | . . Feedback Blocked . | . . Robot Schematics Acquired . | . . Robots Built . | . . Authchips . | . . Time . | . . Total Robot Build Rating . | . . Part Schematics Acquired . | . . Parts Built . | . . Authchips . | . . Time . | . . Total Part Build Rating . | . . Part Studies Acquired . | . . Parts Repaired . | . . Time . | . . Parts Recycled . | . . Recycled Matter . | . . Retrieved Matter . | . . Retrieved Components . | . . Parts Scanalyzed . | . . Part Schematics Acquired . | . . Parts Damaged . | . . Bothacking | -11 -10 ------------ Run | Yrd Mat Used RIF Installer . | . . Robots Hacked . | . . Non-combat . | . . Combat . | . . Robot Hacks Applied . | . . Relay Couplers Released . | . . Fabnet Peak Effective % . | . . Robots Rewired . | . . Allies Hacked . | . . Hacks Repelled . | . . Allies | -11 -10 -------- Run | Yrd Mat Total Allies . | . . Largest Group . | . . Highest-Rated Group . | . . Highest-Rated Ally . | . . Total Orders . | . . Ally Attacks . | . . Total Damage . | . . Kills . | . . Allies Corrupted . | . . Allies Melted . | . . Intel | -11 -10 ------- Run | Yrd Mat Active Infowar (turns) . | . . Robot Analysis Total . | . . Derelict Logs Recovered . | . . Drone Launches . | . . Drone Recoveries . | . . Exploration | -11 -10 ------------- Run | Yrd Mat Turns Passed 182 | 45 137 Spaces Moved 82 | 30 52 Core 12 | 10 2 Treads . | . . Legs 70 | 20 50 Wheels . | . . Hover . | . . Flight . | . . Fastest Speed 50 | 50 120 Average Speed 123 | 123 124 Slowest Speed 250 | 200 250 Overloaded Moves . | . . Propulsion Burnouts . | . . Robots Hopped . | . . Potential Cave-ins . | . . Cave-ins Triggered . | . . Exploration Rate (%) 5 | 3 7 Regions Visited 1 Branch Regions . Pre-discovered Areas . | . . Known Exits Taken . | . . Unknown Exits Taken 1 | 1 . Scrap Searched . | . . Spaces Dug . | . . Terrain Destroyed . | . . Melee . | . . Projectile . | . . AOE . | . . Terrain Rammed . | . . Walls Destroyed . | . . Machines Disabled . | . . Actions | -11 -10 --------- Run | Yrd Mat Total 122 | 35 87 Wait 1 | . 1 Move 81 | 29 52 Hop . | . . Pick Up . | . . Fast Attach 8 | 6 2 Attach . | . . Detach . | . . Swap . | . . Drop . | . . Fire 28 | . 28 Melee . | . . Ram 4 | . 4 Kick . | . . Crush . | . . Escape Stasis . | . . Rewire . | . . Trap . | . . Miscellaneous . | . . Route ------- -11/Scrapyard -10/Materials History --------- Turn | Location | Event 12 | -11/Scrapyard | Discovered new exit (range 16) 46 | -11/Scrapyard | Entered Materials 154 | -10/Materials | Core integrity fell below 50% 176 | -10/Materials | Core integrity fell below 20% 183 | -10/Materials | Destroyed by G-34 Mercenary with Small Laser Last Messages --------------- 00146_ G-34 Mercenary destroyed. 00146_ Switching to secondary target: G-34 Mercenary. 00151_ Lgt. Assault Rifle destroyed. 00156_ U-05 Engineer lays Concrete. 00161_ Aluminum Leg destroyed. 00163_ R-06 Scavenger collects Sml. Laser. 00166_ G-47 Trooper destroyed. 00166_ R-06 Scavenger collects Imp. Heat Sink. 00167_ Lgt. Assault Rifle destroyed. 00168_ Slammed into G-34 Mercenary. 00168_ Destabilizing: Core damaged (-12). 00169_ Slammed into G-34 Mercenary. 00169_ R-06 Scavenger collects Aluminum Leg. 00170_ Slammed into G-34 Mercenary. 00172_ Acquired Lgt. Nuclear Core. 00172_ R-06 Scavenger collects Aluminum Leg. 00175_ Acquired Particle Gun. 00175_ K-01 Serf collects debris. 00179_ Lgt. Nuclear Core destroyed. 00181_ Destroyed Ion Engine. Map ----- +----------------------------------------------------+ | | | | | | | | | | | | | | | | | | | | | | | | | | | | | | | ?????????????????????????????????????????????????? | | ?????????????????????????????????????????????????? | | ????????????????????????????????????##########???? | | ?????????????????########???????????# """"" #???? | | ?????????????????# """ #???????????# ""T"" #???? | | ?????????????????# """ #???######### #???? | | ?????????????????# """ ##### ## #???? | | ?? ####### # # "T" ## #???? | | ?? + # # ## """ #???? | | ?????????######### # # ## """ ###?? | | ??????????###########+###@ + ## """ # ?? | | ?????????## # ## # ?? | | ?????? gg % %###############+## ?? | | ?????? g = ?? | | ??????? ######+######u################### ?? | | ????????????????? # ## #????????# ###+#?? | | ????????????????? # ## """ ######???# # ?? | | ????????????????? # ###### """ # ##### # ?? | | ????????????????? #??????# """ + # ?? | | ????????????????? #??????# # # ?? | | ????????????????? #?????X# """ # ######## ?? | | ?????????????????##??????# """ ## ## ## ?? | | ?????????????????????????# """ ## ## ## ?? | | ?????????????????????????????????????????????????? | | ?????????????????????????????????????????????????? | | ?????????????????????????????????????????????????? | | ?????????????????????????????????????????????????? | | ?????????????????????????????????????????????????? | | ?????????????????????????????????????????????????? | | ?????????????????????????????????????????????????? | | ?????????????????????????????????????????????????? | | ?????????????????????????????????????????????????? | | ?????????????????????????????????????????????????? | | ?????????????????????????????????????????????????? | | ?????????????????????????????????????????????????? | +----------------------------------------------------+ Best States ------------- Heat Dissipation 25 Energy Generation 10 Energy Capacity 125 Matter Stores 232 Matter Capacity 300 Sight Range 16 Terrain Scan Density 10 Evasion (%) 55 Item Schematics ----------------- None Robot Schematics ------------------ None Fabricated ------------ Nothing Repaired ---------- Nothing Studied --------- None Alien Tech Used ----------------- None Achievements -------------- None Challenges ------------ None Game ------ Seed DamperXenonChaingun Manual? 0 Play Time 00:09:03 Cumulative 18.3 hours Start 2026.07.06 @ 21:03:31 End 2026.07.07 @ 17:40:54 Sessions 2 Manual Loads 0 Difficulty Rogue Special Mode None Game No. 23 Rogue 23 Adventurer 0 Explorer 0 Win Type - Total 0 Types 0/0/0/0/0/0/0/0/0/0 Lore% 8 Gallery% 18 Achievement% 16 Wizard Run 0 Options --------- Layout 0 ASCII 0 Keyboard 1 Movement Numpad Keybinds 0 Fullscreen 1 Font 18/SmallcapsGlow Map View 76x50 Zoom Use 0% Tactical HUD 1 Map Filters NONE Filters NONE Steam 1 RUN: ff79055a-d263-4391-8aed-def2926f7303